[Event "Serbian-ch Semifinal 2024"]
[Site "Paracin"]
[Date "2024.02.10"]
[Round "8.1"]
[White "Ivanisevic, Ivan"]
[Black "Atalik, Suat"]
[Result "1/2-1/2"]
[ECO "E62"]
[WhiteElo "2517"]
[BlackElo "2439"]
[Annotator "TA"]
[PlyCount "91"]
[EventDate "2024.02.04"]
[EventType "swiss"]
[EventCountry "SRB"]
[SourceTitle "playchess.com"]
[Source "ChessBase"]
[SourceQuality "1"]
[TimeControl "40/5400+30:1800+30"]

{[%evp 11,91,8,33,22,33,19,12,12,37,35,50,43,125,42,37,31,42,39,31,43,40,38,31,27,34,5,5,0,0,4,0,0,0,0,16,0,10,4,8,13,10,0,10,0,0,0,16,17,16,16,16,16,16,16,31,10,12,0,144,144,144,144,144,144,144,144,144,144,144,144,144,144,144,144,144,2,2,2,2,2,10,0]} 1. d4 {[%emt 0:02:30]} Nf6 {[%emt 0:00:18]} 2. c4 {[%emt 0:00:04]} g6 {[%emt 0:01:12]} 3. g3 {[%emt 0:00:07]} Bg7 {[%emt 0:01:07]} 4. Bg2 {[%emt 0:00:07]} O-O {[%emt 0:00:48]} 5. Nc3 {[%emt 0:02:45]} d6 {[%emt 0:00:58]} 6. Nf3 {[%emt 0:00:09]} Re8 {[%emt 0:03:33]} 7. Bf4 {[%emt 0:08:08]} Nc6 {[%emt 0:00:57]} 8. d5 {[%emt 0:03:36]} Na5 {[%emt 0:05:41]} 9. b3 {[%emt 0:06:03]} e5 {[%emt 0:02:49]} 10. dxe6 {[%emt 0:00:53]} Bxe6 {[%emt 0:00:06]} 11. O-O {[%emt 0:01:02]} d5 {[%emt 0:11:39]} (11... Nc6 $14) 12. cxd5 {[%emt 0:03:57]} (12. Ng5 $16) 12... Nxd5 $14 {[%emt 0:00:17]} 13. Nxd5 {[%emt 0:00:06]} Bxd5 {[%emt 0:00:17]} 14. Bg5 {[%emt 0:03:26]} f6 {[%emt 0:00:58]} 15. Bf4 {[%emt 0:00:14][%cal Of4c7]} Re7 {[%emt 0:05:40]} 16. Qd2 {[%emt 0:15:11]} Nc6 {[%emt 0:00:30][%cal Ba5c6,Bc6d8,Bd8e6][%mdl 32]} 17. Rad1 {[%emt 0:00:11]} Bf7 {[%emt 0:03:23]} 18. Qxd8+ {[%emt 0:06:25]} Rxd8 {[%emt 0:00:29]} 19. Rxd8+ {[%emt 0:00:06]} Nxd8 {[%emt 0:00:06]} 20. Rd1 {[%emt 0:00:04]} Ne6 {[%emt 0:04:26]} 21. Be3 {[%emt 0:00:30]} b6 {[%emt 0:01:11]} 22. h4 {[%emt 0:02:07]} h5 {[%emt 0:05:00]} 23. Bh3 {[%emt 0:09:35]} f5 {[%emt 0:02:32]} 24. Bg2 {[%emt 0:00:07]} c5 {[%emt 0:05:33]} 25. Kf1 {[%emt 0:02:45]} Bf6 {[%emt 0:07:02]} 26. Rd6 {[%emt 0:02:52]} Kg7 {[%emt 0:02:25]} 27. Bd2 {[%emt 0:19:12]} Be8 {[%emt 0:07:25]} 28. Ng5 {[%emt 0:04:45]} Nxg5 {[%emt 0:02:47]} 29. Bxg5 {[%emt 0:00:42]} Bxg5 {[%emt 0:00:40]} 30. hxg5 {[%emt 0:00:06]} Rd7 {[%emt 0:08:10]} 31. Rxd7+ {[%emt 0:00:08]} Bxd7 $11 {[%emt 0:00:03][%mdl 4096] Endgame. KB-KB} 32. Bd5 {[%emt 0:00:11]} a5 {[%emt 0:00:07]} 33. Kg2 {[%emt 0:01:11]} a4 {[%emt 0:04:56]} 34. Kf3 {[%emt 0:00:28]} axb3 {[%emt 0:03:45]} (34... a3 $11 {remains equal.}) 35. axb3 $16 {[%emt 0:00:05]} Kf8 {[%emt 0:01:44]} 36. Kf4 {[%emt 0:00:21]} Ke7 {[%emt 0:00:05]} 37. Ke5 {[%emt 0:00:05]} b5 {[%emt 0:00:04]} 38. e3 {[%emt 0:00:44]} Be8 {[%emt 0:00:25]} 39. f3 {[%emt 0:06:22]} Bd7 {[%emt 0:01:18]} 40. e4 {[%emt 0:00:19]} fxe4 {[%emt 0:00:17]} 41. Bxe4 {[%emt 0:30:14]} Be8 {[%emt 0:30:19]} 42. Kd5 {[%emt 0:00:53]} c4 {[%emt 0:00:25]} 43. b4 {[%emt 0:00:40]} ({White must play} 43. bxc4 $16 Bf7+ 44. Kc5 bxc4 45. f4) 43... Bf7+ {[%emt 0:05:06] The position is equal.} 44. Ke5 {[%emt 0:01:41]} Be8 $1 {[%emt 0:01:15]} 45. Kd4 {[%emt 0:00:00]} (45. f4 $5) 45... Kf7 {[%emt 0:00:00]} 46. Ke5 {[%emt 0:00:00] Weighted Error Value: White=0.14 (very precise) /Black=0.14 (very precise) .  Mistake:       	White=2     	Black=2      Inaccurate:     	White=1     	---        OK:         	White=18    	Black=16     Best:        	---       	Black=1      Strong:       	---       	Black=1} 1/2-1/2

[Event "Serbian-ch Semifinal 2024"]
[Site "Paracin"]
[Date "2024.02.10"]
[Round "8.2"]
[White "Bryakin, Mikhail"]
[Black "Kovacevic, Aleksandar"]
[Result "1/2-1/2"]
[ECO "E25"]
[WhiteElo "2479"]
[BlackElo "2453"]
[Annotator "RC"]
[PlyCount "137"]
[EventDate "2024.02.04"]
[EventType "swiss"]
[EventCountry "SRB"]
[SourceTitle "playchess.com"]
[Source "ChessBase"]
[SourceQuality "1"]
[TimeControl "40/5400+30:1800+30"]

1. d4 {[%emt 0:05:19]} Nf6 {[%emt 0:00:17]} 2. c4 {[%emt 0:00:10]} e6 {[%emt 0:00:07]} 3. Nc3 {[%emt 0:00:15]} Bb4 {[%emt 0:00:19]} 4. f3 {[%emt 0:00:34]} d5 {[%emt 0:02:18]} 5. a3 {[%emt 0:00:22]} Bxc3+ {[%emt 0:00:37]} 6. bxc3 {[%emt 0:00:07]} c5 {[%emt 1:29:52]} 7. cxd5 {[%emt 0:00:20]} Nxd5 {[%emt 0:00:00]} 8. dxc5 {[%emt 0:01:22]} Qa5 {[%emt 0:00:00]} 9. e4 {[%emt 0:01:20]} Ne7 {[%emt 0:00:00]} 10. Be3 {[%emt 0:01:04]} O-O {[%emt 0:00:00]} 11. Qb3 {[%emt 0:01:54]} Qc7 {[%emt 0:00:00]} 12. Bb5 {[%emt 0:03:24]} Nec6 {[%emt 0:00:00]} 13. Ne2 {[%emt 0:02:29]} Na5 {[%emt 0:00:00]} 14. Qb4 {[%emt 0:04:09]} Nbc6 {[%emt 0:00:00]} 15. Qa4 {[%emt 0:03:19]} Bd7 {[%emt 0:00:00]} 16. O-O {[%emt 0:02:32]} a6 {[%emt 0:00:00]} 17. Bxc6 {[%emt 0:01:19]} Bxc6 {[%emt 0:00:00]} 18. Qb4 {[%emt 0:02:30]} Bb5 {[%emt 0:00:00]} 19. Rfe1 {[%emt 0:02:31]} Nc6 {[%emt 0:00:00]} 20. Qb3 {[%emt 0:01:33]} Na5 {[%emt 0:00:00]} 21. Qb4 {[%emt 0:01:16]} Nc6 {[%emt 0:00:00]} 22. Qb1 {[%emt 0:02:41]} e5 {[%emt 0:00:00]} 23. Ng3 {[%emt 0:01:46]} g6 {[%emt 0:00:00]} 24. a4 {[%emt 0:02:00]} Bc4 {[%emt 0:00:00]} 25. Rd1 {[%emt 0:06:29]} Rad8 {[%emt 0:00:00]} 26. h4 {[%emt 0:07:53]} Rxd1+ {[%emt 0:00:00]} 27. Qxd1 {[%emt 0:00:07]} Rd8 {[%emt 0:00:00]} 28. Qe1 {[%emt 0:02:56]} f6 {[%emt 0:00:00]} 29. h5 {[%emt 0:02:06]} Na5 {[%emt 0:00:00]} 30. Qf2 {[%emt 0:11:57]} Qd7 {[%emt 0:00:00]} 31. f4 {[%emt 0:01:38]} Qf7 {[%emt 0:00:00]} 32. Qf3 {[%emt 0:01:24]} Rd3 {[%emt 0:00:00]} 33. Rd1 {[%emt 0:01:00]} Qd7 {[%emt 0:00:00]} 34. Re1 {[%emt 0:02:11]} Nc6 {[%emt 0:01:38]} 35. hxg6 {[%emt 0:02:08]} hxg6 {[%emt 0:01:26]} 36. fxe5 {[%emt 0:03:23]} fxe5 {[%emt 0:00:30]} 37. Qf6 {[%emt 0:00:44]} Qg7 {[%emt 0:03:34]} 38. Qh4 {[%emt 0:02:49]} Rxc3 {[%emt 0:00:25]} 39. Bg5 {[%emt 0:07:55]} Qd7 {[%emt 0:04:35]} 40. Bf6 {[%emt 0:06:52]} Qd2 {[%emt 0:00:03]} 41. Rb1 {[%emt 0:10:38]} Rc1+ {[%emt 0:05:06]} 42. Rxc1 {[%emt 0:00:54]} Qxc1+ {[%emt 0:00:18]} 43. Kh2 {[%emt 0:00:14]} Qf4 {[%emt 0:00:35]} 44. Qh8+ {[%emt 0:00:35]} Kf7 {[%emt 0:01:18]} 45. Bh4 {[%emt 0:15:46]} a5 {[%emt 0:03:59]} 46. Kh1 {[%emt 0:01:40]} Qc1+ {[%emt 0:05:47]} 47. Kh2 {[%emt 0:00:05]} Qf4 {[%emt 0:00:04]} 48. Kh3 {[%emt 0:00:45]} Be6+ {[%emt 0:00:20]} 49. Nf5 {[%emt 0:02:20]} Bxf5+ {[%emt 0:02:41]} 50. exf5 {[%emt 0:00:05]} Qxf5+ {[%emt 0:00:26]} 51. Kh2 {[%emt 0:00:09]} Qf4+ {[%emt 0:04:41]} 52. Bg3 {[%emt 0:01:38]} Qf6 {[%emt 0:01:10]} 53. Qh7+ {[%emt 0:00:48]} Qg7 {[%emt 0:00:28]} 54. Qh3 {[%emt 0:00:18]} Kg8 {[%emt 0:02:58]} 55. Bh4 {[%emt 0:02:00]} Qf7 {[%emt 0:00:22]} 56. Qc8+ {[%emt 0:01:36]} Kg7 {[%emt 0:02:17]} 57. Bg5 {[%emt 0:00:28]} Kh7 {[%emt 0:01:27]} 58. Bd2 {[%emt 0:01:00]} Qe7 {[%emt 0:00:42]} 59. Kg3 {[%emt 0:01:13]} Kg7 {[%emt 0:02:40]} 60. Kg4 {[%emt 0:00:41]} Kf7 {[%emt 0:00:23]} 61. Kg3 {[%emt 0:01:32]} Nd4 {[%emt 0:02:04]} 62. Bxa5 {[%emt 0:00:42]} Qg5+ {[%emt 0:00:39]} 63. Kh2 {[%emt 0:00:22]} Qf4+ {[%emt 0:00:19]} 64. Kh1 {[%emt 0:00:39]} Qf1+ {[%emt 0:02:00]} 65. Kh2 {[%emt 0:00:05]} Qf4+ {[%emt 0:00:07]} 66. Kh1 {[%emt 0:00:10]} Qc1+ {[%emt 0:01:19]} 67. Kh2 {[%emt 0:00:05]} Qf4+ {[%emt 0:00:14]} 68. Kh1 {[%emt 0:00:05]} Qf1+ {[%emt 0:02:07]} 69. Kh2 {[%emt 0:00:06]} 1/2-1/2

[Event "Serbian-ch Semifinal 2024"]
[Site "Paracin"]
[Date "2024.02.10"]
[Round "8.3"]
[White "Cabarkapa, Novak"]
[Black "Nestorovic, Nikola"]
[Result "1-0"]
[ECO "D35"]
[WhiteElo "2434"]
[BlackElo "2465"]
[Annotator "TA"]
[PlyCount "109"]
[EventDate "2024.02.04"]
[EventType "swiss"]
[EventCountry "SRB"]
[SourceTitle "playchess.com"]
[Source "ChessBase"]
[SourceQuality "1"]
[TimeControl "40/5400+30:1800+30"]

{[%evp 20,109,131,133,133,108,126,87,92,93,86,96,86,79,110,18,85,81,71,88,92,80,138,131,135,139,141,135,143,158,125,154,485,203,217,252,331,329,345,345,325,0,348,0,343,327,334,344,360,360,360,357,318,317,437,421,405,241,241,8,12,0,256,165,173,177,194,181,213,69,184,16,16,0,0,0,0,0,8,10,260,247,6715,11772,29993,29994,29995,29991,29993,29992,29992,29993]} 1. c4 {[%emt 0:04:59]} e6 {[%emt 0:01:21]} 2. Nc3 {[%emt 0:01:10]} d5 {[%emt 0:00:13]} 3. d4 {[%emt 0:00:05]} Nf6 {[%emt 0:00:38]} 4. cxd5 {[%emt 0:00:06]} exd5 {[%emt 0:00:33]} 5. Bg5 {[%emt 0:00:07]} c6 {[%emt 0:01:22]} 6. e3 {[%emt 0:00:06]} Bb4 {[%emt 0:05:35] D35: Queen's Gambit Declined: Exchange Variation.} 7. Bd3 {[%emt 0:10:27]} h6 {[%emt 0:00:24]} 8. Bh4 {[%emt 0:00:34]} g5 {[%emt 0:01:58]} 9. Bg3 {[%emt 0:00:07]} Ne4 {[%emt 0:00:05]} 10. Bxe4 $146 {[%emt 0:04:47]} ({Predecessor:} 10. Qb3 Qe7 11. Rc1 a5 12. Nge2 a4 13. Qc2 Nd7 14. O-O Nxg3 15. Nxg3 Nf6 16. Nxa4 {1-0 Moreira,R (2088)-Celestino,R Titled Tuesday intern op 11th Apr Late blitz 2023 (6)}) 10... dxe4 {[%emt 0:00:15]} 11. h4 {[%emt 0:01:10]} Rg8 {[%emt 0:16:25]} 12. hxg5 {[%emt 0:00:06]} hxg5 {[%emt 0:00:05]} 13. Qc2 {[%emt 0:01:35]} Bf5 {[%emt 0:09:33]} 14. Nge2 {[%emt 0:19:41]} Nd7 {[%emt 0:24:15]} 15. a3 {[%emt 0:01:21]} Bxc3+ {[%emt 0:06:20]} 16. Nxc3 {[%emt 0:03:58]} Qe7 {[%emt 0:01:12]} 17. b4 {[%emt 0:15:22]} (17. O-O-O $16) 17... Nf6 {[%emt 0:03:37]} (17... Kf8 $11) 18. b5 $16 {[%emt 0:01:28]} Rc8 {[%emt 0:05:36]} 19. bxc6 {[%emt 0:00:07]} Rxc6 {[%emt 0:01:31]} 20. Qd2 {[%emt 0:00:16]} Qd7 {[%emt 0:02:21] [#]} (20... b6 $142) 21. d5 $1 $16 {[%emt 0:02:18]} Rc4 {[%emt 0:00:04]} 22. Rb1 {[%emt 0:05:06]} a6 {[%emt 0:03:29]} 23. Rb6 {[%emt 0:03:23]} Qc8 {[%emt 0:00:31]} 24. Rxf6 {[%emt 0:00:24]} Rxc3 {[%emt 0:00:03]} 25. O-O {[%emt 0:00:37]} Rc2 $2 {[%emt 0:02:25]} (25... Rd3 $16 {is a better chance.} 26. Qb2 Rxd5) 26. Qd1 {[%emt 0:11:45]} (26. Qd4 $142 Rc1 27. f3 (27. Qe5+ Be6 $11)) 26... Bg4 $18 {[%emt 0:05:01]} 27. Qd4 {[%emt 0:00:05]} Qc4 {[%emt 0:01:16]} 28. Qe5+ {[%emt 0:00:46]} Kf8 {[%emt 0:00:41]} 29. Qd6+ {[%emt 0:00:06]} Ke8 {[%emt 0:02:54]} 30. Qe5+ {[%emt 0:07:27]} Kf8 {[%emt 0:00:07]} 31. Qd6+ {[%emt 0:00:02]} Ke8 $1 {[%emt 0:00:04]} 32. Rb1 {[%emt 0:00:07]} Rc1+ {[%emt 0:02:15]} 33. Rxc1 {[%emt 0:00:12]} Qxc1+ {[%emt 0:00:02]} 34. Kh2 {[%emt 0:00:06]} Rh8+ {[%emt 0:01:24]} 35. Rh6 {[%emt 0:00:06]} Rxh6+ {[%emt 0:00:04]} 36. Qxh6 {[%emt 0:00:06]} Qc8 {[%emt 0:03:39]} 37. Qh8+ {[%emt 0:05:43]} (37. Qxg5 Qf5 38. Qg8+ Kd7 $18) 37... Kd7 {[%emt 0:00:37]} 38. Qe5 {[%emt 0:00:53]} (38. Qh7 $142 Qe8 39. f3 exf3 40. gxf3) 38... Qd8 $18 {[%emt 0:00:05]} 39. Qd6+ $2 {[%emt 0:00:39]} (39. Qxe4 Qh8+ 40. Kg1 Qa1+ 41. Kh2 Qh8+ 42. Kg1 Qa1+ 43. Kh2 Qh8+ $11) (39. Kg1 $18 Qe7 40. Qb8) 39... Ke8 $11 {[%emt 0:00:01]} 40. Qe5+ $2 {[%emt 0:00:08]} (40. Qc5 $11) 40... Kd7 $18 {[%emt 0:00:38]} 41. f3 {[%emt 0:31:26]} (41. Qxe4 Qh8+ 42. Kg1 Qa1+ 43. Kh2 Qh8+ 44. Kg1 Qa1+ 45. Kh2 Qh8+ $11) 41... exf3 {[%emt 0:31:33]} 42. gxf3 {[%emt 0:00:32]} Bh5 {[%emt 0:00:18]} 43. e4 {[%emt 0:00:00]} Bg6 {[%emt 0:00:00]} 44. Qb2 {[%emt 0:00:00]} (44. Kg2 $18) 44... Qc8 $14 {[%emt 0:00:00] [#]} 45. Be5 $2 {[%emt 0:00:00]} ({White has to play} 45. Qf6 $1 $18) 45... g4 $1 $11 {[%emt 0:00:00]} 46. Qg2 {[%emt 0:00:00]} (46. fxg4 Bxe4 47. Qb6 Ke8 (47... Bxd5 48. Qd6+ Ke8 49. Qxd5 $16) (47... Qc2+ 48. Kg3 $11)) 46... Ke8 {[%emt 0:00:00]} 47. f4 {[%emt 0:00:00]} f5 {[%emt 0:00:00]} 48. Kg3 {[%emt 0:00:00]} Qc1 {[%emt 0:00:00]} 49. Kh4 {[%emt 0:00:00]} Qxa3 $2 {[%emt 0:00:00]} (49... Qc8 $1 $11) 50. Kg5 $18 {[%emt 0:00:21]} Kf7 $2 {[%emt 0:00:00]} (50... Bf7 51. Qc2 (51. exf5 Qh3 $11) 51... Qe7+ 52. Kxf5 Qd7+ 53. Kg5 g3) 51. d6 $18 {[%emt 0:00:45]} fxe4 {[%emt 0:01:06]} 52. Qxg4 {[%emt 0:00:30]} Qa4 {[%emt 0:00:45]} 53. f5 {[%emt 0:00:49]} Bh7 {[%emt 0:01:00]} 54. Qh5+ {[%emt 0:00:31]} Kg8 {[%emt 0:00:02]} 55. Qh6 {[%emt 0:00:18]} 1-0

[Event "Serbian-ch Semifinal 2024"]
[Site "Paracin"]
[Date "2024.02.10"]
[Round "8.4"]
[White "Ratkovic, Milovan"]
[Black "Radovanovic, Nikola"]
[Result "0-1"]
[ECO "A45"]
[WhiteElo "2396"]
[BlackElo "2446"]
[Annotator "TA"]
[PlyCount "84"]
[EventDate "2024.02.04"]
[EventType "swiss"]
[EventCountry "SRB"]
[SourceTitle "playchess.com"]
[Source "ChessBase"]
[SourceQuality "1"]
[TimeControl "40/5400+30:1800+30"]

{[%evp 9,84,-2,0,0,0,14,0,0,0,0,16,0,0,0,0,0,0,0,0,-10,-9,-9,-9,-13,-18,-56,-83,-83,-101,-107,-98,-103,-85,-78,69,-241,-178,-175,-191,-198,-187,-145,-99,-106,-106,-108,-116,-108,-107,-108,-124,-151,-151,-155,-156,-157,-141,-156,-18,-28,-32,-253,0,0,0,-150,-151,-304,-299,-1170,-1047,-1522,-1425,-12388,-5887,-29953,-5585]} 1. d4 {[%emt 0:00:02]} Nf6 {[%emt 0:04:38]} 2. Bf4 {[%emt 0:00:49]} g6 {[%emt 0:00:08]} 3. Nc3 {[%emt 0:01:06]} d5 {[%emt 0:00:13]} 4. e3 {[%emt 0:00:17]} Bg7 {[%emt 0:00:27]} 5. h4 {[%emt 0:00:48]} h5 {[%emt 0:05:24]} 6. Nf3 {[%emt 0:00:58]} O-O {[%emt 0:00:16][%cal Oc7c5]} 7. Ne5 {[%emt 0:05:57]} c5 {[%emt 0:00:20]} 8. Qd2 {[%emt 0:02:00] The position is equal.} cxd4 {[%emt 0:01:04]} 9. exd4 {[%emt 0:00:29]} Nc6 {[%emt 0:00:46]} 10. O-O-O {[%emt 0:09:00]} Bf5 {[%emt 0:03:34]} 11. Nxc6 {[%emt 0:23:06]} bxc6 {[%emt 0:00:10]} 12. f3 {[%emt 0:00:53]} c5 {[%emt 0:16:26]} 13. Be5 {[%emt 0:05:28]} Qa5 {[%emt 1:03:34][%cal Oa8b8]} 14. g4 {[%emt 0:14:23]} hxg4 {[%emt 0:00:00]} 15. h5 $1 {[%emt 0:05:23] Black must now prevent h6.} cxd4 {[%emt 0:00:00]} (15... gxf3 $2 16. h6 Nd7 (16... Bh8 17. h7+ Nxh7 18. Qh6 g5 19. Bd3 f6 20. Bxf5 Rf7 21. Be6) 17. hxg7 $18 (17. Bxg7 e5 $18)) 16. Qxd4 {[%emt 0:16:13]} (16. Bxd4 {is interesting.} Nxh5 17. Bxg7 Kxg7 18. Rxh5 gxh5 19. fxg4 hxg4 20. Qg5+) 16... gxh5 {[%emt 0:00:00]} (16... gxf3 17. h6 Bh8 18. h7+ Nxh7 (18... Kg7 19. Qf4) 19. Qh4 $18 (19. Bxh8 f6 $18)) 17. Qf4 {[%emt 0:12:08]} Bg6 {[%emt 0:00:00]} 18. fxg4 {[%emt 0:00:00]} Nxg4 {[%emt 0:00:00]} 19. Bxg7 {[%emt 0:00:00]} Kxg7 {[%emt 0:00:00]} 20. Rxd5 {[%emt 0:00:00] [#]} Qb6 {[%emt 0:00:00]} 21. Bd3 {[%emt 0:00:00]} Rad8 {[%emt 0:00:00] Some like it hot} (21... e5 $17 22. Qg5 Rh8) 22. Re1 $2 {[%emt 0:00:42][%mdl 8192]} (22. Rdxh5 $1 $14 {is the one way to stay ahead.} Rxd3 (22... Bxh5 23. Rxh5 Qe3+ 24. Qxe3 $16) 23. cxd3 (23. Qxg4 Qe3+ 24. Kb1 Rxc3 $11) 23... Bxh5 24. Rxh5 Qg1+ 25. Kd2 Qg2+ 26. Ne2) 22... Qf2 {[%emt 0:00:49]} 23. Qxf2 {[%emt 0:00:40]} Nxf2 {[%emt 0:00:01]} 24. Rxe7 {[%emt 0:01:08]} Bxd3 {[%emt 0:01:21]} (24... Nxd3+ 25. cxd3 h4 26. Re3) 25. cxd3 {[%emt 0:00:05]} Nxd3+ {[%emt 0:00:05]} (25... h4 $142 26. Rf5 Nxd3+ 27. Kc2 Nb4+ 28. Kc1 Rd4) 26. Kd2 $17 {[%emt 0:00:48]} Nxb2 {[%emt 0:00:27][%cal Bd3b2,Bb2c4,Bc4e3,Be3g4][%mdl 32] Strongly threatening ...Rxd5+.} 27. Kc2 {[%emt 0:01:04]} Rxd5 {[%emt 0:03:41]} 28. Nxd5 {[%emt 0:00:01][%mdl 4096] Endgame. [#] KRN-KRN} Nc4 {[%emt 0:00:22]} 29. Nf4 {[%emt 0:00:01]} h4 {[%emt 0:00:42]} 30. Rc7 {[%emt 0:00:21]} Ne3+ {[%emt 0:00:15]} 31. Kd3 {[%emt 0:00:01]} Re8 {[%emt 0:00:17] Prevents Ne6+.} 32. Rxa7 {[%emt 0:00:16]} Ng4 {[%emt 0:00:51] aiming for ...Nf2+.} 33. Ra5 {[%emt 0:00:19]} Re3+ {[%emt 0:00:38]} (33... Ne5+ $17 34. Kc2 Kf6) 34. Kd4 {[%emt 0:00:38]} f6 {[%emt 0:00:23] Prevents Rg5+} 35. Nh5+ $2 {[%emt 0:01:27]} ({White should play} 35. Ng2 $15 Rh3 36. Nf4) 35... Kg6 $2 {[%emt 0:00:18]} (35... Kf7 $19 {...h3 would now be deadly.} 36. Nf4 h3) 36. Nf4+ $11 {[%emt 0:00:05]} Kg7 {[%emt 0:00:06]} 37. Rh5 {[%emt 0:01:28]} (37. Nh5+ $11 Kf7 38. Nf4) 37... Ra3 $17 {[%emt 0:00:16] Hoping for ...Ra4+.} 38. Ne6+ $2 {[%emt 0:00:45]} (38. Nd3 $17) 38... Kf7 $19 {[%emt 0:00:28]} 39. Nc5 $2 {[%emt 0:00:19]} (39. Nd8+ Ke7 40. Nc6+ Ke6 (40... Kd6 41. Na5 $17) 41. Rxh4) 39... h3 {[%emt 0:00:16]} 40. Ke4 {[%emt 0:00:49]} Kg6 {[%emt 0:01:42]} ({Weaker is} 40... Rxa2 41. Kf4 $15) 41. Rh8 {[%emt 0:03:20]} h2 {[%emt 0:03:05]} 42. Nd7 {[%emt 0:00:58]} h1=Q+ {[%emt 0:00:34] Weighted Error Value: White=0.89/Black=0.24 (precise) .  Loses game:     	White=2     	---        Missed win:     	---       	Black=1      Mistake:       	White=3     	Black=3      Inaccurate:     	White=2     	---        OK:         	White=11    	Black=17     Best:        	White=3     	Black=3      Strong:       	White=1     	---} 0-1

[Event "Serbian-ch Semifinal 2024"]
[Site "Paracin"]
[Date "2024.02.10"]
[Round "8.5"]
[White "Pap, Misa"]
[Black "Tadic, Stefan"]
[Result "1-0"]
[ECO "C77"]
[WhiteElo "2422"]
[BlackElo "2390"]
[Annotator "RC"]
[PlyCount "149"]
[EventDate "2024.02.04"]
[EventType "swiss"]
[EventCountry "SRB"]
[SourceTitle "playchess.com"]
[Source "ChessBase"]
[SourceQuality "1"]
[TimeControl "40/5400+30:1800+30"]

1. e4 {[%emt 0:04:31]} e5 {[%emt 0:00:07]} 2. Nf3 {[%emt 0:00:41]} Nc6 {[%emt 0:00:05]} 3. Bb5 {[%emt 0:00:54]} a6 {[%emt 0:00:07]} 4. Ba4 {[%emt 0:00:06]} Nf6 {[%emt 0:00:05]} 5. d3 {[%emt 0:00:26]} d6 {[%emt 0:00:05]} 6. c3 {[%emt 0:00:55]} g6 {[%emt 0:00:05]} 7. O-O {[%emt 0:00:19]} Bg7 {[%emt 0:00:04]} 8. Nbd2 {[%emt 0:00:21]} O-O {[%emt 0:00:11]} 9. Re1 {[%emt 0:00:23]} h6 {[%emt 0:00:29]} 10. Bxc6 {[%emt 0:12:24]} bxc6 {[%emt 0:00:13]} 11. d4 {[%emt 0:00:04]} Nd7 {[%emt 0:13:20]} 12. dxe5 {[%emt 0:21:41]} Nxe5 {[%emt 0:00:41]} 13. Nxe5 {[%emt 0:00:18]} Bxe5 {[%emt 0:00:30]} 14. Nc4 {[%emt 0:01:11]} Bg7 {[%emt 0:00:36]} 15. Bf4 {[%emt 0:01:04]} a5 {[%emt 0:17:33]} 16. Qa4 {[%emt 0:12:29]} c5 {[%emt 0:04:09]} 17. Rad1 {[%emt 0:02:49]} Qe8 {[%emt 0:02:52]} 18. Qc2 {[%emt 0:05:15]} Be6 {[%emt 0:01:16]} 19. Ne3 {[%emt 0:00:21]} Qc6 {[%emt 0:06:22]} 20. Nd5 {[%emt 0:10:30]} Rae8 {[%emt 0:01:01]} 21. c4 {[%emt 0:09:28]} Qb7 {[%emt 0:15:19]} 22. Bd2 {[%emt 0:05:58]} c6 {[%emt 0:09:20]} 23. Nc3 {[%emt 0:02:52]} g5 {[%emt 0:04:21]} 24. h4 {[%emt 0:00:50]} Qe7 {[%emt 0:00:05]} 25. hxg5 {[%emt 0:00:38]} hxg5 {[%emt 0:00:07]} 26. Qc1 {[%emt 0:01:46]} f6 {[%emt 0:03:59]} 27. Ne2 {[%emt 0:01:36]} Qf7 {[%emt 0:03:44]} 28. Ng3 {[%emt 0:00:25]} f5 {[%emt 0:00:51]} 29. exf5 {[%emt 0:00:23]} Bxf5 {[%emt 0:00:06]} 30. Rxe8 {[%emt 0:01:02]} Rxe8 {[%emt 0:00:01]} 31. Bc3 {[%emt 0:02:18]} Rf8 {[%emt 0:07:25]} 32. Bxg7 {[%emt 0:00:50]} Qxg7 {[%emt 0:00:49]} 33. Rxd6 {[%emt 0:00:25]} Bh7 {[%emt 0:00:01]} 34. Qe3 {[%emt 0:01:13]} Qxb2 {[%emt 0:00:33]} 35. Qxg5+ {[%emt 0:00:12]} Kh8 {[%emt 0:00:06]} 36. Qe3 {[%emt 0:01:06]} a4 {[%emt 0:01:38]} 37. Rd7 {[%emt 0:00:20]} a3 {[%emt 0:00:02]} 38. f3 {[%emt 0:00:49]} Rg8 {[%emt 0:00:28]} 39. Qh6 {[%emt 0:00:32]} Qb1+ {[%emt 0:00:36]} 40. Kh2 {[%emt 0:00:25]} Qg6 {[%emt 0:00:04]} 41. Qxg6 {[%emt 0:10:53]} Rxg6 {[%emt 0:01:40]} 42. Ra7 {[%emt 0:00:20]} Rh6+ {[%emt 0:03:41]} 43. Kg1 {[%emt 0:00:50]} Rh4 {[%emt 0:00:03]} 44. Rxa3 {[%emt 0:01:11]} Rxc4 {[%emt 0:00:07]} 45. Re3 {[%emt 0:05:55]} Rc2 {[%emt 0:06:44]} 46. a3 {[%emt 0:00:45]} c4 {[%emt 0:02:46]} 47. Ne4 {[%emt 0:00:18]} Rb2 {[%emt 0:00:45]} 48. a4 {[%emt 0:02:18]} Ra2 {[%emt 0:01:50]} 49. Nc5 {[%emt 0:00:08]} Bg8 {[%emt 0:04:07]} 50. Kh2 {[%emt 0:00:32]} Bd5 {[%emt 0:00:05]} 51. Kh3 {[%emt 0:00:15]} Kg7 {[%emt 0:00:03]} 52. g4 {[%emt 0:00:14]} Kg6 {[%emt 0:01:21]} 53. Kg3 {[%emt 0:00:26]} Ra1 {[%emt 0:02:24]} 54. Kf4 {[%emt 0:00:08]} Kf6 {[%emt 0:00:02]} 55. Nd7+ {[%emt 0:03:08]} Kf7 {[%emt 0:00:53]} 56. Kf5 {[%emt 0:02:19]} Rxa4 {[%emt 0:04:56]} 57. g5 {[%emt 0:00:28]} Ra5 {[%emt 0:00:22]} 58. g6+ {[%emt 0:01:01]} Kg7 {[%emt 0:00:01]} 59. Re7+ {[%emt 0:00:34]} Bf7+ {[%emt 0:00:19]} 60. Ne5 {[%emt 0:03:11]} Rxe5+ {[%emt 0:00:18]} 61. Rxe5 {[%emt 0:00:50]} Bxg6+ {[%emt 0:00:09]} 62. Kg5 {[%emt 0:00:14]} Bf7 {[%emt 0:03:33]} 63. f4 {[%emt 0:00:29]} Bd5 {[%emt 0:00:06]} 64. Re3 {[%emt 0:00:21]} Kf7 {[%emt 0:01:22]} 65. f5 {[%emt 0:00:11]} Bg2 {[%emt 0:00:51]} 66. Ra3 {[%emt 0:00:22]} Bd5 {[%emt 0:01:10]} 67. Ra7+ {[%emt 0:00:05]} Ke8 {[%emt 0:01:37]} 68. Kf6 {[%emt 0:00:34]} c3 {[%emt 0:00:36]} 69. Ra3 {[%emt 0:01:09]} c2 {[%emt 0:00:52]} 70. Rc3 {[%emt 0:00:06]} Bb3 {[%emt 0:00:02]} 71. Rxc6 {[%emt 0:01:05]} Kd7 {[%emt 0:00:11]} 72. Rc3 {[%emt 0:00:06]} Kd6 {[%emt 0:00:04]} 73. Kg7 {[%emt 0:00:10]} Ke5 {[%emt 0:00:05]} 74. f6 {[%emt 0:00:08]} Kd4 {[%emt 0:00:05]} 75. Rxc2 {[%emt 0:00:13]} 1-0